[Event "*** Titled Tuesday Blitz"]
[Site "Chess.com"]
[Date "2020.02.04"]
[Round "3"]
[White "Rodalquilar"]
[Black "kacprekt"]
[Result "1-0"]
[WhiteElo "2670"]
[BlackElo "2393"]
[TimeControl "180+2"]
[EndTime "13:39:56 PST"]
[Termination "Rodalquilar won by resignation"]

1. d4 {[%clk 0:03:01.4]} 1... Nf6 {[%clk 0:02:55.9]} 2. Bf4 {[%clk 0:03:02.3]}
2... c5 {[%clk 0:02:53.4]} 3. e3 {[%clk 0:03:01.7]} 3... cxd4 {[%clk 0:02:53.4]}
4. exd4 {[%clk 0:03:02]} 4... d5 {[%clk 0:02:54.9]} 5. Nf3 {[%clk 0:02:56.9]}
5... Nc6 {[%clk 0:02:52.4]} 6. Nbd2 {[%clk 0:02:55.7]} 6... Bg4 {[%clk
0:02:45.3]} 7. c3 {[%clk 0:02:55.6]} 7... e6 {[%clk 0:02:44.2]} 8. Qb3 {[%clk
0:02:47.9]} 8... Qc8 {[%clk 0:02:21.5]} 9. a4 {[%clk 0:02:20.9]} 9... Be7 {[%clk
0:02:19.5]} 10. a5 {[%clk 0:02:22.1]} 10... O-O {[%clk 0:02:19.6]} 11. a6 {[%clk
0:02:23.6]} 11... b6 {[%clk 0:02:19.4]} 12. Bb5 {[%clk 0:02:24.1]} 12... Rd8
{[%clk 0:02:12.8]} 13. Qa4 {[%clk 0:02:21]} 13... Nb8 {[%clk 0:02:10.8]} 14. Ne5
{[%clk 0:02:21.2]} 14... Bh5 {[%clk 0:02:07.2]} 15. Nc6 {[%clk 0:02:13.2]} 15...
Nxc6 {[%clk 0:01:58.3]} 16. Bxc6 {[%clk 0:02:15.1]} 16... Rb8 {[%clk 0:01:42.5]}
17. Bxb8 {[%clk 0:02:13.9]} 17... Qxb8 {[%clk 0:01:44.4]} 18. O-O {[%clk
0:02:14.4]} 18... Ng4 {[%clk 0:01:43.5]} 19. Nf3 {[%clk 0:02:14.1]} 19... Bd6
{[%clk 0:01:39.6]} 20. h3 {[%clk 0:02:13.3]} 20... Nf6 {[%clk 0:01:26.6]} 21.
Nd2 {[%clk 0:02:08.7]} 21... Bf4 {[%clk 0:01:26.4]} 22. Qc2 {[%clk 0:01:42.4]}
22... Bg6 {[%clk 0:01:25]} 23. Qd1 {[%clk 0:01:42.2]} 23... Bh5 {[%clk 0:01:26]}
24. Nf3 {[%clk 0:01:42.6]} 24... Ne4 {[%clk 0:01:21.6]} 25. Bb5 {[%clk
0:01:43.3]} 25... Nd2 {[%clk 0:01:12.3]} 26. Be2 {[%clk 0:01:11]} 26... Nxf1
{[%clk 0:01:12]} 27. Kxf1 {[%clk 0:01:11.6]} 27... Bxf3 {[%clk 0:01:02.4]} 28.
Bxf3 {[%clk 0:01:11.9]} 28... Qd6 {[%clk 0:01:03.1]} 29. Be2 {[%clk 0:01:11.1]}
29... Bg5 {[%clk 0:00:59.8]} 30. Bd3 {[%clk 0:01:11.9]} 30... g6 {[%clk
0:00:59.5]} 31. g3 {[%clk 0:01:11.9]} 31... h5 {[%clk 0:00:59.7]} 32. Kg2 {[%clk
0:01:12.7]} 32... h4 {[%clk 0:00:59.4]} 33. Qe2 {[%clk 0:01:11.9]} 33... hxg3
{[%clk 0:00:58.6]} 34. fxg3 {[%clk 0:01:13.8]} 34... Kg7 {[%clk 0:00:57.8]} 35.
Rf1 {[%clk 0:01:14.7]} 35... f5 {[%clk 0:00:55.4]} 36. h4 {[%clk 0:01:08.6]}
36... Bf6 {[%clk 0:00:56.2]} 37. h5 {[%clk 0:01:07.2]} 37... g5 {[%clk
0:00:56.3]} 38. g4 {[%clk 0:01:08.7]} 38... f4 {[%clk 0:00:54.7]} 39. Bc2 {[%clk
0:01:08.8]} 39... e5 {[%clk 0:00:51.8]} 40. h6+ {[%clk 0:00:32.8]} 40... Kh8
{[%clk 0:00:50.3]} 41. dxe5 {[%clk 0:00:30.7]} 41... Qxe5 {[%clk 0:00:51.8]} 42.
Qxe5 {[%clk 0:00:31.9]} 42... Bxe5 {[%clk 0:00:52.6]} 43. Re1 {[%clk 0:00:33.5]}
43... Re8 {[%clk 0:00:52]} 44. Bg6 {[%clk 0:00:23.4]} 44... Re6 {[%clk
0:00:48.6]} 45. Bf5 {[%clk 0:00:24.2]} 45... Re7 {[%clk 0:00:49.3]} 46. Rd1
{[%clk 0:00:23.9]} 46... d4 {[%clk 0:00:38.6]} 47. cxd4 {[%clk 0:00:23.8]} 47...
Bd6 {[%clk 0:00:39.9]} 48. Rc1 {[%clk 0:00:22.1]} 48... Rc7 {[%clk 0:00:40.3]}
49. Rxc7 {[%clk 0:00:17]} 49... Bxc7 {[%clk 0:00:41.1]} 50. Kf3 {[%clk
0:00:18.6]} 50... Bd6 {[%clk 0:00:42.2]} 51. Ke4 {[%clk 0:00:19.8]} 51... Bf8
{[%clk 0:00:43.2]} 52. Kd5 {[%clk 0:00:17.1]} 52... f3 {[%clk 0:00:41.6]} 53.
Kc6 {[%clk 0:00:18.3]} 53... f2 {[%clk 0:00:41.2]} 54. Bd3 {[%clk 0:00:19.3]}
54... Bxh6 {[%clk 0:00:36.3]} 55. Kb7 {[%clk 0:00:20.5]} 55... Bg7 {[%clk
0:00:36.7]} 56. d5 {[%clk 0:00:21.2]} 56... b5 {[%clk 0:00:33.3]} 57. Kxa7
{[%clk 0:00:21.3]} 57... Bxb2 {[%clk 0:00:32.5]} 58. Kb7 {[%clk 0:00:20.4]}
58... Bd4 {[%clk 0:00:33.4]} 59. d6 {[%clk 0:00:20.9]} 59... Kg7 {[%clk
0:00:27.6]} 60. d7 {[%clk 0:00:22.1]} 1-0

[Event "*** Titled Tuesday Blitz"]
[Site "Chess.com"]
[Date "2020.02.04"]
[Round "3"]
[White "masterofpuppets2"]
[Black "Vuk2000"]
[Result "0-1"]
[WhiteElo "2468"]
[BlackElo "2683"]
[TimeControl "180+2"]
[EndTime "13:39:56 PST"]
[Termination "Vuk2000 won by resignation"]

1. d4 {[%clk 0:03:01.9]} 1... Nf6 {[%clk 0:03:00.8]} 2. c4 {[%clk 0:03:02.6]}
2... e6 {[%clk 0:03:01.9]} 3. Nf3 {[%clk 0:03:03.3]} 3... b6 {[%clk 0:03:02.8]}
4. g3 {[%clk 0:03:03.2]} 4... Ba6 {[%clk 0:03:03.6]} 5. Qc2 {[%clk 0:03:03.3]}
5... Bb7 {[%clk 0:03:01.8]} 6. Bg2 {[%clk 0:02:59.9]} 6... c5 {[%clk 0:03:02.2]}
7. O-O {[%clk 0:02:22.8]} 7... cxd4 {[%clk 0:03:02.4]} 8. Nxd4 {[%clk
0:02:23.6]} 8... Bxg2 {[%clk 0:03:02.8]} 9. Kxg2 {[%clk 0:02:24.6]} 9... Qc8
{[%clk 0:03:04.2]} 10. b3 {[%clk 0:02:19]} 10... Be7 {[%clk 0:03:00.5]} 11. Bb2
{[%clk 0:02:19.2]} 11... O-O {[%clk 0:02:57.6]} 12. e4 {[%clk 0:02:19.1]} 12...
Qb7 {[%clk 0:02:45.7]} 13. f3 {[%clk 0:02:18.2]} 13... Rc8 {[%clk 0:02:46.6]}
14. Qe2 {[%clk 0:02:13.4]} 14... Nc6 {[%clk 0:02:40]} 15. Nd2 {[%clk 0:02:06.3]}
15... Bc5 {[%clk 0:02:34.6]} 16. Nb5 {[%clk 0:02:03.8]} 16... a6 {[%clk
0:02:32.2]} 17. Na3 {[%clk 0:01:52.6]} 17... Nd4 {[%clk 0:01:51.2]} 18. Qd3
{[%clk 0:01:52.9]} 18... b5 {[%clk 0:01:40.4]} 19. Bxd4 {[%clk 0:01:41.5]} 19...
Bxa3 {[%clk 0:01:40.9]} 20. e5 {[%clk 0:01:35]} 20... Ne8 {[%clk 0:01:39.6]} 21.
Ne4 {[%clk 0:01:25]} 21... bxc4 {[%clk 0:01:24.9]} 22. bxc4 {[%clk 0:01:25.3]}
22... Qb4 {[%clk 0:01:23]} 23. c5 {[%clk 0:01:14.4]} 23... Qa4 {[%clk
0:01:17.8]} 24. Rab1 {[%clk 0:01:10.8]} 24... Rcb8 {[%clk 0:01:17.8]} 25. Rb3
{[%clk 0:01:08.9]} 25... Rxb3 {[%clk 0:01:15.3]} 26. axb3 {[%clk 0:01:08.9]}
26... Qb5 {[%clk 0:01:07]} 27. Qxb5 {[%clk 0:00:54.1]} 27... axb5 {[%clk
0:01:08.9]} 28. Ra1 {[%clk 0:00:54.6]} 28... Nc7 {[%clk 0:01:09.3]} 29. Kf2
{[%clk 0:00:39]} 29... h6 {[%clk 0:00:44.9]} 30. h4 {[%clk 0:00:39.2]} 30... Kh7
{[%clk 0:00:44.3]} 31. Nd6 {[%clk 0:00:39.1]} 31... Bxc5 {[%clk 0:00:39.9]} 32.
Rd1 {[%clk 0:00:30.1]} 32... Bxd6 {[%clk 0:00:39.7]} 33. exd6 {[%clk 0:00:30.2]}
33... Ra2+ {[%clk 0:00:39]} 34. Ke3 {[%clk 0:00:30.2]} 34... Nd5+ {[%clk
0:00:39.6]} 35. Ke4 {[%clk 0:00:31.5]} 35... Ra6 {[%clk 0:00:31.1]} 36. Be5
{[%clk 0:00:24.1]} 36... f6 {[%clk 0:00:31.7]} 37. Bb2 {[%clk 0:00:24.8]} 37...
Rxd6 {[%clk 0:00:30.9]} 38. Rc1 {[%clk 0:00:25.6]} 38... Ra6 {[%clk 0:00:23.6]}
39. Rc5 {[%clk 0:00:23.9]} 39... Ra2 {[%clk 0:00:23.7]} 40. Bd4 {[%clk
0:00:23.4]} 40... b4 {[%clk 0:00:23.7]} 41. Rb5 {[%clk 0:00:23.8]} 41... Ra3
{[%clk 0:00:07]} 42. Rb7 {[%clk 0:00:21.5]} 42... Rxb3 {[%clk 0:00:05.5]} 43.
Rxd7 {[%clk 0:00:22.7]} 43... Kg6 {[%clk 0:00:06.6]} 44. h5+ {[%clk 0:00:22.7]}
44... Kh7 {[%clk 0:00:06.7]} 45. g4 {[%clk 0:00:22.4]} 45... Rb1 {[%clk
0:00:07]} 46. Rb7 {[%clk 0:00:20.6]} 46... Re1+ {[%clk 0:00:07.6]} 47. Kd3
{[%clk 0:00:21.6]} 47... Rd1+ {[%clk 0:00:09]} 48. Ke2 {[%clk 0:00:21.9]} 48...
Rxd4 {[%clk 0:00:09.4]} 49. Rb8 {[%clk 0:00:22.7]} 49... e5 {[%clk 0:00:10.3]}
50. Rb7 {[%clk 0:00:23.9]} 50... Nf4+ {[%clk 0:00:11.2]} 51. Ke3 {[%clk
0:00:24.9]} 51... Rc4 {[%clk 0:00:12.5]} 52. Rb6 {[%clk 0:00:24.9]} 52... Nd5+
{[%clk 0:00:12.6]} 53. Kd3 {[%clk 0:00:25.3]} 53... Rd4+ {[%clk 0:00:13.9]} 0-1

[Event "*** Titled Tuesday Blitz"]
[Site "Chess.com"]
[Date "2020.02.04"]
[Round "3"]
[White "Megagigahiper3345"]
[Black "Zq1"]
[Result "0-1"]
[WhiteElo "2318"]
[BlackElo "2544"]
[TimeControl "180+2"]
[EndTime "13:40:02 PST"]
[Termination "Zq1 won by resignation"]

1. d4 {[%clk 0:00:40.3]} 1... Nf6 {[%clk 0:02:59.7]} 2. c4 {[%clk 0:00:39.3]}
2... a6 {[%clk 0:03:00.8]} 3. g3 {[%clk 0:00:38.7]} 3... c5 {[%clk 0:03:01.8]}
4. d5 {[%clk 0:00:36.4]} 4... b5 {[%clk 0:03:02.3]} 5. Bg2 {[%clk 0:00:35.9]}
5... d6 {[%clk 0:03:03.6]} 6. a4 {[%clk 0:00:34.9]} 6... b4 {[%clk 0:03:03.8]}
7. b3 {[%clk 0:00:34.6]} 7... g6 {[%clk 0:03:04.8]} 8. Bb2 {[%clk 0:00:35.3]}
8... Bg7 {[%clk 0:03:06.3]} 9. Nd2 {[%clk 0:00:33.8]} 9... O-O {[%clk
0:03:07.7]} 10. Ngf3 {[%clk 0:00:27.2]} 10... Ra7 {[%clk 0:03:04.2]} 11. O-O
{[%clk 0:00:27.3]} 11... e6 {[%clk 0:03:05.4]} 12. e4 {[%clk 0:00:27.2]} 12...
exd5 {[%clk 0:03:06.4]} 13. cxd5 {[%clk 0:00:25.4]} 13... a5 {[%clk 0:03:07]}
14. Re1 {[%clk 0:00:25.2]} 14... Ba6 {[%clk 0:03:07.6]} 15. Bf1 {[%clk
0:00:24.9]} 15... Bxf1 {[%clk 0:03:02.7]} 16. Rxf1 {[%clk 0:00:16.1]} 16... Re8
{[%clk 0:03:04.2]} 17. Re1 {[%clk 0:00:16.8]} 17... Nbd7 {[%clk 0:03:03.6]} 18.
Qc2 {[%clk 0:00:17.2]} 18... Ng4 {[%clk 0:02:55]} 19. h3 {[%clk 0:00:16.2]}
19... Bxb2 {[%clk 0:02:49.7]} 20. Qxb2 {[%clk 0:00:16]} 20... Nge5 {[%clk
0:02:51.2]} 21. Nxe5 {[%clk 0:00:16.9]} 21... Nxe5 {[%clk 0:02:52.1]} 22. Qc2
{[%clk 0:00:18.4]} 22... Qf6 {[%clk 0:02:47.4]} 23. Kg2 {[%clk 0:00:16.1]} 23...
Rc7 {[%clk 0:02:36.6]} 24. Rac1 {[%clk 0:00:16.7]} 24... c4 {[%clk 0:02:30.7]}
25. bxc4 {[%clk 0:00:10.9]} 25... Rec8 {[%clk 0:02:28.6]} 26. Qb3 {[%clk
0:00:10.6]} 26... Nd7 {[%clk 0:02:26.8]} 27. Qe3 {[%clk 0:00:08.9]} 27... Nc5
{[%clk 0:02:24.8]} 28. f4 {[%clk 0:00:10.2]} 28... Re7 {[%clk 0:02:09.6]} 29. e5
{[%clk 0:00:11.6]} 29... Qf5 {[%clk 0:02:10.2]} 30. g4 {[%clk 0:00:12.6]} 30...
Qd7 {[%clk 0:02:07.8]} 31. Nf3 {[%clk 0:00:10.8]} 31... b3 {[%clk 0:01:57.1]}
32. f5 {[%clk 0:00:10.3]} 32... f6 {[%clk 0:01:27.2]} 33. e6 {[%clk 0:00:11.3]}
33... Qxa4 {[%clk 0:01:24.6]} 34. h4 {[%clk 0:00:12.6]} 34... Rg7 {[%clk
0:01:22.9]} 35. fxg6 {[%clk 0:00:13.1]} 35... Rxg6 {[%clk 0:01:21.4]} 36. h5
{[%clk 0:00:13.1]} 36... Rg7 {[%clk 0:01:07]} 37. h6 {[%clk 0:00:14.1]} 37...
Rg6 {[%clk 0:01:07.7]} 38. Nh4 {[%clk 0:00:15.4]} 38... Rg5 {[%clk 0:00:57.1]}
39. Nf3 {[%clk 0:00:16.8]} 39... Rxg4+ {[%clk 0:00:52.9]} 40. Kh3 {[%clk
0:00:17.9]} 40... Rg6 {[%clk 0:00:53.9]} 41. Rg1 {[%clk 0:00:18.5]} 41... b2
{[%clk 0:00:51.9]} 42. Rxg6+ {[%clk 0:00:19.6]} 42... hxg6 {[%clk 0:00:52.3]}
43. Rg1 {[%clk 0:00:21.5]} 43... Kh7 {[%clk 0:00:51.6]} 44. Nh4 {[%clk
0:00:17.4]} 44... Qb3 {[%clk 0:00:48.2]} 45. Qxb3 {[%clk 0:00:15.1]} 45... Nxb3
{[%clk 0:00:49.1]} 46. Rb1 {[%clk 0:00:15.9]} 46... Rxc4 {[%clk 0:00:45.7]} 47.
Rxb2 {[%clk 0:00:17.1]} 47... a4 {[%clk 0:00:44.9]} 48. Re2 {[%clk 0:00:13.7]}
48... Rc8 {[%clk 0:00:42.1]} 49. Nf3 {[%clk 0:00:08.4]} 49... Kxh6 {[%clk
0:00:41.3]} 50. Ra2 {[%clk 0:00:09.5]} 50... Ra8 {[%clk 0:00:36.7]} 51. Kg4
{[%clk 0:00:07.5]} 51... a3 {[%clk 0:00:32.4]} 52. e7 {[%clk 0:00:08.7]} 52...
Nc5 {[%clk 0:00:30.8]} 53. Rxa3 {[%clk 0:00:09.5]} 53... Re8 {[%clk 0:00:31]}
54. Re3 {[%clk 0:00:10.2]} 54... Kg7 {[%clk 0:00:31.8]} 55. Nd4 {[%clk 0:00:11]}
55... Kf7 {[%clk 0:00:30.3]} 56. Nc6 {[%clk 0:00:11.1]} 56... Nd7 {[%clk
0:00:31.3]} 57. Re6 {[%clk 0:00:12.2]} 57... Ne5+ {[%clk 0:00:29.7]} 58. Kf4
{[%clk 0:00:05.4]} 58... Nxc6 {[%clk 0:00:28.8]} 59. dxc6 {[%clk 0:00:07.3]}
59... Kxe6 {[%clk 0:00:29.1]} 0-1

[Event "*** Titled Tuesday Blitz"]
[Site "Chess.com"]
[Date "2020.02.04"]
[Round "3"]
[White "cukus"]
[Black "MikaelyanArman"]
[Result "0-1"]
[WhiteElo "2486"]
[BlackElo "2751"]
[TimeControl "180+2"]
[EndTime "13:40:05 PST"]
[Termination "MikaelyanArman won by resignation"]

1. e4 {[%clk 0:03:01.3]} 1... e5 {[%clk 0:03:00.4]} 2. Nf3 {[%clk 0:03:00.1]}
2... Nc6 {[%clk 0:03:01.5]} 3. Bb5 {[%clk 0:03:00.4]} 3... a6 {[%clk 0:03:02.7]}
4. Ba4 {[%clk 0:03:01.3]} 4... f5 {[%clk 0:03:01.1]} 5. d3 {[%clk 0:02:56.4]}
5... fxe4 {[%clk 0:03:01.6]} 6. dxe4 {[%clk 0:02:57.3]} 6... Nf6 {[%clk
0:03:02.9]} 7. Bb3 {[%clk 0:02:50.6]} 7... Bb4+ {[%clk 0:02:51.8]} 8. c3 {[%clk
0:02:45.9]} 8... Bc5 {[%clk 0:02:52.8]} 9. O-O {[%clk 0:02:45.4]} 9... d6 {[%clk
0:02:48.4]} 10. a4 {[%clk 0:02:38.2]} 10... Bg4 {[%clk 0:02:45.4]} 11. h3 {[%clk
0:02:39.3]} 11... Bh5 {[%clk 0:02:43.8]} 12. Nbd2 {[%clk 0:02:36.5]} 12... Qd7
{[%clk 0:02:28.6]} 13. Re1 {[%clk 0:02:36.4]} 13... h6 {[%clk 0:02:15]} 14. Nf1
{[%clk 0:02:36.3]} 14... a5 {[%clk 0:02:11.8]} 15. Ng3 {[%clk 0:02:35.9]} 15...
Bf7 {[%clk 0:02:12.1]} 16. Nf5 {[%clk 0:02:31.3]} 16... O-O {[%clk 0:01:55.2]}
17. N3h4 {[%clk 0:02:05.8]} 17... Bxb3 {[%clk 0:01:46.4]} 18. Qxb3+ {[%clk
0:02:07.7]} 18... Kh7 {[%clk 0:01:47.6]} 19. Be3 {[%clk 0:01:58.9]} 19... g6
{[%clk 0:01:38.5]} 20. Bxc5 {[%clk 0:01:42.1]} 20... gxf5 {[%clk 0:01:38]} 21.
Nxf5 {[%clk 0:01:18.3]} 21... dxc5 {[%clk 0:01:36.7]} 22. Rad1 {[%clk
0:01:19.9]} 22... Qf7 {[%clk 0:01:21.2]} 23. Qxb7 {[%clk 0:01:19.8]} 23... Ne7
{[%clk 0:01:22.5]} 24. Qxc7 {[%clk 0:01:09.5]} 24... Nxf5 {[%clk 0:01:21.2]} 25.
Qxf7+ {[%clk 0:01:09.2]} 25... Rxf7 {[%clk 0:01:23.1]} 26. exf5 {[%clk
0:01:10.8]} 26... e4 {[%clk 0:01:22.5]} 27. g4 {[%clk 0:01:10.4]} 27... Rb8
{[%clk 0:01:23.1]} 28. Re2 {[%clk 0:01:03.9]} 28... Kg7 {[%clk 0:01:19.1]} 29.
Kg2 {[%clk 0:00:58.7]} 29... Rfb7 {[%clk 0:01:17.8]} 30. Rdd2 {[%clk 0:00:59.9]}
30... Kf7 {[%clk 0:01:15.9]} 31. Kg3 {[%clk 0:01:00.7]} 31... Rd7 {[%clk
0:00:59.5]} 32. Rxd7+ {[%clk 0:00:59.2]} 32... Nxd7 {[%clk 0:01:01.4]} 33. Kf4
{[%clk 0:00:54.2]} 33... Nf6 {[%clk 0:00:59.4]} 34. h4 {[%clk 0:00:48.1]} 34...
Re8 {[%clk 0:00:25.5]} 35. Rd2 {[%clk 0:00:48.6]} 35... e3 {[%clk 0:00:22.3]}
36. fxe3 {[%clk 0:00:46.9]} 36... Re4+ {[%clk 0:00:22.7]} 37. Kf3 {[%clk
0:00:48.6]} 37... Rxg4 {[%clk 0:00:22.9]} 38. Rd6 {[%clk 0:00:43.3]} 38... Rxa4
{[%clk 0:00:20.7]} 39. Rc6 {[%clk 0:00:39.3]} 39... Ne4 {[%clk 0:00:16.2]} 40.
Rxh6 {[%clk 0:00:35.8]} 40... Nf6 {[%clk 0:00:13.7]} 41. Rh8 {[%clk 0:00:34]}
41... Ra1 {[%clk 0:00:13.5]} 42. Rc8 {[%clk 0:00:33.4]} 42... Rf1+ {[%clk
0:00:14.2]} 43. Ke2 {[%clk 0:00:32.4]} 43... Rxf5 {[%clk 0:00:16.1]} 44. c4
{[%clk 0:00:31.9]} 44... Ne4 {[%clk 0:00:13.6]} 45. Kd3 {[%clk 0:00:29.7]} 45...
Nf2+ {[%clk 0:00:13.7]} 46. Ke2 {[%clk 0:00:30.5]} 46... Ng4 {[%clk 0:00:14.6]}
47. Ra8 {[%clk 0:00:29]} 47... Ke6 {[%clk 0:00:14.1]} 48. Rxa5 {[%clk
0:00:29.4]} 48... Rf2+ {[%clk 0:00:14.1]} 49. Kd3 {[%clk 0:00:28.6]} 49... Ne5+
{[%clk 0:00:09.5]} 50. Kc3 {[%clk 0:00:25.9]} 50... Kd6 {[%clk 0:00:08.6]} 51.
b4 {[%clk 0:00:23.7]} 51... cxb4+ {[%clk 0:00:08.2]} 52. Kxb4 {[%clk 0:00:25.2]}
52... Nc6+ {[%clk 0:00:09.5]} 53. Kb5 {[%clk 0:00:20.2]} 53... Rf5+ {[%clk
0:00:08.1]} 54. Kb6 {[%clk 0:00:18.1]} 54... Nxa5 {[%clk 0:00:07.5]} 55. e4
{[%clk 0:00:17]} 55... Nxc4+ {[%clk 0:00:08.2]} 0-1

[Event "*** Titled Tuesday Blitz"]
[Site "Chess.com"]
[Date "2020.02.04"]
[Round "3"]
[White "SHIVACalypso"]
[Black "bazar-wokzal"]
[Result "1/2-1/2"]
[WhiteElo "2228"]
[BlackElo "2532"]
[TimeControl "180+2"]
[EndTime "13:40:17 PST"]
[Termination "Game drawn by repetition"]

1. Nf3 {[%clk 0:03:01.9]} 1... c5 {[%clk 0:03:00.2]} 2. c4 {[%clk 0:03:03]} 2...
g6 {[%clk 0:03:00.8]} 3. g3 {[%clk 0:03:03.7]} 3... Bg7 {[%clk 0:03:01.8]} 4.
Bg2 {[%clk 0:03:05.2]} 4... Nc6 {[%clk 0:03:02.2]} 5. O-O {[%clk 0:03:06.8]}
5... d6 {[%clk 0:03:02.5]} 6. Nc3 {[%clk 0:03:07.2]} 6... f5 {[%clk 0:03:03.6]}
7. d3 {[%clk 0:03:07.8]} 7... Nf6 {[%clk 0:03:03.9]} 8. Rb1 {[%clk 0:03:09.1]}
8... O-O {[%clk 0:03:00.8]} 9. a3 {[%clk 0:03:06.7]} 9... h6 {[%clk 0:02:55.6]}
10. b4 {[%clk 0:03:06.6]} 10... g5 {[%clk 0:02:50.3]} 11. b5 {[%clk 0:03:03.1]}
11... Nd4 {[%clk 0:02:45.9]} 12. Nxd4 {[%clk 0:03:04.1]} 12... cxd4 {[%clk
0:02:46.7]} 13. Nd5 {[%clk 0:03:05.4]} 13... e6 {[%clk 0:02:39.9]} 14. Nxf6+
{[%clk 0:02:58.1]} 14... Qxf6 {[%clk 0:02:41.4]} 15. Bb2 {[%clk 0:02:57.2]}
15... h5 {[%clk 0:02:39.5]} 16. e3 {[%clk 0:02:58.3]} 16... Qh6 {[%clk 0:02:29]}
17. Bxd4 {[%clk 0:02:56.1]} 17... Bxd4 {[%clk 0:02:28.8]} 18. exd4 {[%clk
0:02:58]} 18... f4 {[%clk 0:02:23.8]} 19. Re1 {[%clk 0:02:46.5]} 19... g4 {[%clk
0:02:19.6]} 20. gxf4 {[%clk 0:02:43.5]} 20... Qxf4 {[%clk 0:02:18.5]} 21. Qe2
{[%clk 0:02:39.2]} 21... Qxd4 {[%clk 0:02:18.8]} 22. Qe4 {[%clk 0:02:39.4]}
22... Qxf2+ {[%clk 0:02:15.7]} 23. Kh1 {[%clk 0:02:39.2]} 23... Qf5 {[%clk
0:02:10.5]} 24. Qd4 {[%clk 0:02:29.1]} 24... Qf4 {[%clk 0:02:08.4]} 25. Re4
{[%clk 0:02:26.9]} 25... Qf6 {[%clk 0:01:52.6]} 26. Qxd6 {[%clk 0:02:24.3]}
26... Rd8 {[%clk 0:01:53.3]} 27. Qc5 {[%clk 0:02:15.6]} 27... e5 {[%clk
0:01:36.3]} 28. Qxe5 {[%clk 0:02:11.6]} 28... Qxe5 {[%clk 0:01:36.7]} 29. Rxe5
{[%clk 0:02:13.5]} 29... Rxd3 {[%clk 0:01:35.1]} 30. Bd5+ {[%clk 0:02:14.2]}
30... Kg7 {[%clk 0:01:35]} 31. Rf1 {[%clk 0:02:13.3]} 31... Rxa3 {[%clk
0:01:26.9]} 32. Rf7+ {[%clk 0:02:03.1]} 32... Kg6 {[%clk 0:01:26.8]} 33. Rf8
{[%clk 0:01:48.5]} 33... h4 {[%clk 0:01:22.4]} 34. Rg8+ {[%clk 0:01:42]} 34...
Kf6 {[%clk 0:01:22.2]} 35. Ree8 {[%clk 0:01:33.6]} 35... h3 {[%clk 0:01:16.5]}
36. Kg1 {[%clk 0:01:30.6]} 36... a6 {[%clk 0:01:11.5]} 37. Rxc8 {[%clk
0:01:12.8]} 37... Rxc8 {[%clk 0:01:07.4]} 38. Rxc8 {[%clk 0:01:14.7]} 38... axb5
{[%clk 0:01:08.1]} 39. cxb5 {[%clk 0:00:54.6]} 39... Ra5 {[%clk 0:01:08.2]} 40.
Rc5 {[%clk 0:00:51]} 40... b6 {[%clk 0:01:02.7]} 41. Rc6+ {[%clk 0:00:51.8]}
41... Ke5 {[%clk 0:01:03.3]} 42. Bc4 {[%clk 0:00:47.1]} 42... Ra1+ {[%clk
0:01:03.9]} 43. Bf1 {[%clk 0:00:47.2]} 43... g3 {[%clk 0:00:56.6]} 44. hxg3
{[%clk 0:00:32]} 44... h2+ {[%clk 0:00:56.9]} 45. Kxh2 {[%clk 0:00:33.2]} 45...
Rxf1 {[%clk 0:00:54]} 46. Rxb6 {[%clk 0:00:34.2]} 46... Rb1 {[%clk 0:00:50.8]}
47. Rb8 {[%clk 0:00:33.6]} 47... Kf6 {[%clk 0:00:51.1]} 48. b6 {[%clk
0:00:33.7]} 48... Kg7 {[%clk 0:00:51.7]} 49. Kh3 {[%clk 0:00:32.8]} 49... Rb4
{[%clk 0:00:52.2]} 50. Kg2 {[%clk 0:00:30.7]} 50... Rb3 {[%clk 0:00:53]} 51. Kf2
{[%clk 0:00:31.5]} 51... Kh7 {[%clk 0:00:53.1]} 52. b7 {[%clk 0:00:27.6]} 52...
Kg7 {[%clk 0:00:52]} 53. Ke2 {[%clk 0:00:28.7]} 53... Rb6 {[%clk 0:00:48]} 54.
Kd2 {[%clk 0:00:29.7]} 54... Rb5 {[%clk 0:00:47.9]} 55. Kc3 {[%clk 0:00:30.4]}
55... Rb1 {[%clk 0:00:48.4]} 56. g4 {[%clk 0:00:30.7]} 56... Rb6 {[%clk
0:00:48.3]} 57. Kc4 {[%clk 0:00:31.2]} 57... Rb1 {[%clk 0:00:49]} 58. Kc5 {[%clk
0:00:32.4]} 58... Rc1+ {[%clk 0:00:49.7]} 59. Kd5 {[%clk 0:00:31.6]} 59... Rd1+
{[%clk 0:00:50.5]} 60. Kc4 {[%clk 0:00:31.3]} 60... Rc1+ {[%clk 0:00:51.2]} 61.
Kd5 {[%clk 0:00:30.5]} 61... Rd1+ {[%clk 0:00:51]} 62. Ke6 {[%clk 0:00:31.5]}
62... Re1+ {[%clk 0:00:50.5]} 63. Kf5 {[%clk 0:00:32.1]} 63... Rb1 {[%clk
0:00:50.9]} 64. Kg5 {[%clk 0:00:31.4]} 64... Rb5+ {[%clk 0:00:50.8]} 65. Kh4
{[%clk 0:00:31.8]} 65... Rb4 {[%clk 0:00:51.7]} 66. Kg5 {[%clk 0:00:24.3]} 66...
Rb5+ {[%clk 0:00:52.6]} 67. Kh4 {[%clk 0:00:24.1]} 67... Rb4 {[%clk 0:00:51.1]}
68. Kg5 {[%clk 0:00:23.5]} 68... Rb5+ {[%clk 0:00:51.5]} 1/2-1/2